fUST/lending_fUST_20250917
["ID","MTS","AMOUNT","RATE_DAILY","PERIOD"]
[385831505,1758058241288,-480.0,0.00021917,2]
[385831506,1758058241297,-480.0,0.00021917,2]
[385831507,1758058241306,-480.0,0.00021917,2]
[385831508,1758058241315,-480.0,0.00021917,2]
[385831509,1758058241324,-480.0,0.00021917,2]
[385831511,1758058241333,-1063.88,0.00021917,2]
[385831512,1758058241341,-480.0,0.00021917,2]
[385831514,1758058241350,-480.0,0.00021917,2]
[385831516,1758058241360,-815.65,0.00021917,2]
[385831518,1758058241369,-480.0,0.00021917,2]
[385831520,1758058241377,-480.0,0.00021917,2]
[385831522,1758058241386,-480.0,0.00021917,2]
[385831524,1758058241396,-480.0,0.00021917,2]
[385831526,1758058241405,-480.0,0.00021917,2]
[385831528,1758058241414,-184.8656637,0.00021917,2]
[385831530,1758058241423,-480.0,0.00021917,2]
[385831532,1758058241432,-637.59,0.00021917,2]
[385831534,1758058241441,-480.0,0.00021917,2]
[385831536,1758058241451,-480.0,0.00021917,2]
[385831538,1758058241459,-480.0,0.00021917,2]
[385831540,1758058241469,-480.0,0.00021917,2]
[385831542,1758058241478,-480.0,0.00021917,2]
[385831544,1758058241487,-866.41,0.00021917,2]
[385831546,1758058241496,-5783.91,0.00021917,2]
[385831558,1758058241598,-1118.25,0.00021917,2]
[385831560,1758058241607,-480.0,0.00021917,2]
[385831562,1758058241616,-480.0,0.00021917,2]
[385831564,1758058241626,-480.0,0.00021917,2]
[385831566,1758058241635,-480.0,0.00021917,2]
[385831568,1758058241645,-480.0,0.00021917,2]
[385831570,1758058241654,-480.0,0.00021917,2]
[385831572,1758058241663,-480.0,0.00021917,2]
[385831574,1758058241672,-480.0,0.00021917,2]
[385831576,1758058241681,-480.0,0.00021917,2]
[385831578,1758058241690,-20720.4,0.00021917,2]
[385831580,1758058241699,-480.0,0.00021917,2]
[385831582,1758058241708,-11132.22,0.00021917,2]
[385831583,1758058241717,-1875.19,0.00021917,2]
[385831585,1758058241726,-480.0,0.00021917,2]
[385831587,1758058241735,-480.0,0.00021917,2]
[385831589,1758058241745,-480.0,0.00021917,2]
[385831591,1758058241754,-480.0,0.00021917,2]
[385831593,1758058241762,-607.69,0.00021917,2]
[385831595,1758058241772,-480.0,0.00021917,2]
[385831597,1758058241781,-480.0,0.00021917,2]
[385831599,1758058241790,-480.0,0.00021917,2]
[385831601,1758058241800,-480.0,0.00021917,2]
[385831603,1758058241809,-480.0,0.00021917,2]
[385831605,1758058241818,-732.37,0.00021917,2]
[385831607,1758058241827,-480.0,0.00021917,2]
[385831609,1758058241836,-480.0,0.00021917,2]
[385831611,1758058241845,-480.0,0.00021917,2]
[385831613,1758058241854,-480.0,0.00021917,2]
[385831615,1758058241864,-2293.05,0.00021917,2]
[385831617,1758058241878,-480.0,0.00021917,2]
[385831619,1758058241889,-480.0,0.00021917,2]
[385831621,1758058241898,-1438.87,0.00021917,2]
[385831623,1758058241907,-805.62,0.00021917,2]
[385831625,1758058241917,-480.0,0.00021917,2]
[385831627,1758058241926,-480.0,0.00021917,2]
[385831629,1758058241935,-1155.75,0.00021917,2]
[385831631,1758058241944,-559.5502626,0.00021917,2]
[385831633,1758058241953,-480.0,0.00021917,2]
[385831635,1758058241963,-1919.94,0.00021917,2]
[385831637,1758058241972,-516.2065162,0.00021917,2]
[385831639,1758058241981,-979.01,0.00021917,2]
[385831640,1758058241989,-1029.27,0.00021917,2]
[385831642,1758058241998,-480.0,0.00021917,2]
[385831644,1758058242008,-480.0,0.00021917,2]
[385831646,1758058242017,-480.0,0.00021917,2]
[385831648,1758058242026,-480.0,0.00021917,2]
[385831650,1758058242035,-2512.04,0.00021917,2]
[385831653,1758058242045,-480.0,0.00021917,2]
[385831654,1758058242054,-480.95494393,0.00021917,2]
[385831656,1758058242063,-480.0,0.00021917,2]
[385831658,1758058242072,-2337.78,0.00021917,2]
[385831660,1758058242081,-1124.2,0.00021917,2]
[385831662,1758058242090,-481.718405,0.00021917,2]
[385831664,1758058242100,-480.0,0.00021917,2]
[385831666,1758058242109,-482.12818552,0.00021917,2]
[385831668,1758058242118,-4896.51,0.00021917,2]
[385831670,1758058242127,-483.16201664,0.00021917,2]
[385831672,1758058242137,-1320.86,0.00021917,2]
[385831674,1758058242146,-480.0,0.00021917,2]
[385831676,1758058242155,-480.0,0.00021917,2]
[385831678,1758058242164,-1830.54,0.00021917,2]
[385831680,1758058242173,-480.0,0.00021917,2]
[385831682,1758058242182,-480.0,0.00021917,2]
[385831684,1758058242191,-480.0,0.00021917,2]
[385831686,1758058242201,-689.12,0.00021917,2]
[385831688,1758058242210,-480.0,0.00021917,2]
[385831690,1758058242219,-480.0,0.00021917,2]
[385831692,1758058242229,-480.0,0.00021917,2]
[385831694,1758058242238,-600.0,0.00021944,20]
[385831696,1758058242247,-500.0,0.00021973,2]
[385831698,1758058242258,-500.0,0.00021973,2]
[385831700,1758058242267,-500.0,0.00021973,2]
[385831702,1758058242276,-500.0,0.00021973,2]
[385831704,1758058242285,-500.0,0.00021973,2]
[385831706,1758058242294,-500.0,0.00021973,2]
[385831708,1758058242303,-150.221,0.00021975,2]
[385831711,1758058242313,-1460.46258543,0.0002199,2]
[385831713,1758058242323,-252.0,0.00022067,2]
[385831715,1758058242331,-252.0,0.00022069,2]
[385831717,1758058242341,-252.0,0.00022097,2]
[385831719,1758058242350,-634.0,0.00022123,2]
[385831721,1758058242359,-500.0,0.00022173,2]
[385831723,1758058242368,-500.0,0.00022173,2]
[385831724,1758058242377,-500.0,0.00022173,2]
[385831726,1758058242386,-500.0,0.00022173,2]
[385831728,1758058242395,-977.0,0.00022181,2]
[385831730,1758058242404,-410.0,0.00022181,2]
[385831732,1758058242413,-412.92,0.00022181,2]
[385831735,1758058242423,-480.0,0.00022191,3]
[385831736,1758058242433,-480.0,0.00022191,3]
[385831739,1758058242442,-480.0,0.00022191,3]
[385831741,1758058242451,-480.0,0.00022191,3]
[385831742,1758058242461,-480.0,0.00022191,3]
[385831744,1758058242470,-480.0,0.00022191,3]
[385831746,1758058242479,-480.0,0.00022191,3]
[385831748,1758058242488,-507.81,0.00022191,3]
[385831750,1758058242497,-480.0,0.00022191,3]
[385831752,1758058242506,-480.0,0.00022191,3]
[385831755,1758058242515,-480.0,0.00022191,3]
[385831757,1758058242525,-480.0,0.00022191,3]
[385831759,1758058242533,-480.0,0.00022191,3]
[385831761,1758058242543,-480.0,0.00022191,3]
[385831763,1758058242552,-480.0,0.00022191,3]
[385831765,1758058242561,-480.0,0.00022191,3]
[385831767,1758058242570,-480.0,0.00022191,3]
[385831769,1758058242578,-480.0,0.00022191,3]
[385831771,1758058242587,-480.0,0.00022191,3]
[385831773,1758058242596,-480.0,0.00022191,3]
[385831775,1758058242605,-480.0,0.00022191,3]
[385831777,1758058242615,-480.0,0.00022191,3]
[385831780,1758058242625,-480.0,0.00022191,3]
[385831783,1758058242634,-480.0,0.00022191,3]
[385831786,1758058242643,-480.0,0.00022191,3]
[385831789,1758058242652,-480.0,0.00022191,3]
[385831791,1758058242661,-398.62584068,0.00022191,3]
[385831794,1758058242670,-480.0,0.00022191,3]
[385831797,1758058242680,-480.0,0.00022191,3]
[385831800,1758058242689,-412.15884369,0.00022191,3]
[385831803,1758058242698,-480.0,0.00022191,3]
[385831806,1758058242707,-480.0,0.00022191,3]
[385831809,1758058242717,-480.0,0.00022191,3]
[385831812,1758058242726,-480.0,0.00022191,3]
[385831815,1758058242735,-480.0,0.00022191,3]
[385831818,1758058242744,-480.0,0.00022191,3]
[385831821,1758058242754,-404.73041872,0.00022191,3]
[385831824,1758058242764,-480.0,0.00022191,3]
[385831827,1758058242774,-480.0,0.00022191,3]
[385831830,1758058242784,-480.0,0.00022191,3]
[385831832,1758058242793,-480.0,0.00022191,3]
[385831834,1758058242802,-480.0,0.00022191,3]
[385831836,1758058242811,-518.46,0.00022191,3]
[385831838,1758058242822,-480.0,0.00022191,3]
[385831840,1758058242832,-480.0,0.00022191,3]
[385831842,1758058242841,-480.0,0.00022191,3]
[385831844,1758058242849,-480.0,0.00022191,3]
[385831846,1758058242859,-480.0,0.00022191,3]
[385831848,1758058242870,-480.0,0.00022191,3]
[385831850,1758058242888,-1325.44,0.00022191,3]
[385831852,1758058242898,-480.0,0.00022191,3]
[385831854,1758058242907,-480.0,0.00022191,3]
[385831856,1758058242916,-480.0,0.00022191,3]
[385831858,1758058242925,-505.72,0.00022191,3]
[385831860,1758058242934,-480.0,0.00022191,3]
[385831862,1758058242943,-480.0,0.00022191,3]
[385831863,1758058242953,-536.1,0.00022191,3]
[385831865,1758058242961,-480.0,0.00022191,3]
[385831867,1758058242971,-480.0,0.00022191,3]
[385831869,1758058242980,-480.0,0.00022191,3]
[385831871,1758058242990,-480.0,0.00022191,3]
[385831873,1758058242999,-480.0,0.00022191,3]
[385831875,1758058243013,-1918.31,0.00022191,3]
[385831877,1758058243022,-480.0,0.00022191,3]
[385831879,1758058243031,-480.0,0.00022191,3]
[385831881,1758058243041,-480.0,0.00022191,3]
[385831883,1758058243051,-480.0,0.00022191,3]
[385831885,1758058243060,-456.70241615,0.00022191,2]
[385831887,1758058243069,-480.0,0.00022191,3]
[385831889,1758058243079,-877.7,0.00022191,3]
[385831891,1758058243088,-480.0,0.00022191,3]
[385831893,1758058243097,-480.0,0.00022191,3]
[385831895,1758058243106,-487.04,0.00022191,3]
[385831897,1758058243115,-1035.57,0.00022191,3]
[385831899,1758058243124,-370.08583587,0.00022191,3]
[385831901,1758058243133,-480.0,0.00022191,3]
[385831903,1758058243143,-480.0,0.00022191,3]
[385831905,1758058243152,-652.36,0.00022191,3]
[385831907,1758058243161,-480.0,0.00022191,3]
[385831909,1758058243170,-480.0,0.00022191,3]
[385831911,1758058243180,-480.0,0.00022191,3]
[385831913,1758058243189,-480.0,0.00022191,3]
[385831915,1758058243198,-480.0,0.00022191,3]
[385831917,1758058243207,-480.0,0.00022191,3]
[385831919,1758058243217,-480.0,0.00022191,3]
[385831921,1758058243226,-480.0,0.00022191,3]
[385831923,1758058243235,-480.0,0.00022191,3]
[385831925,1758058243244,-480.0,0.00022191,3]
[385831927,1758058243253,-480.0,0.00022191,3]
[385831929,1758058243263,-177.03323772,0.00022191,2]
[385831931,1758058243271,-480.0,0.00022191,3]
[385831933,1758058243281,-480.0,0.00022191,3]
[385831935,1758058243290,-480.0,0.00022191,3]
[385831937,1758058243299,-538.72797756,0.00022191,3]
[385831939,1758058243308,-480.0,0.00022191,3]
[385831941,1758058243317,-480.0,0.00022191,3]
[385831943,1758058243327,-480.0,0.00022191,3]
[385831944,1758058243336,-480.0,0.00022191,3]
[385831946,1758058243345,-480.0,0.00022191,3]
[385831948,1758058243355,-480.0,0.00022191,3]
[385831950,1758058243364,-480.0,0.00022191,3]
[385831952,1758058243374,-480.0,0.00022191,3]
[385831954,1758058243383,-480.0,0.00022191,3]
[385831956,1758058243392,-739.37,0.00022191,3]
[385831958,1758058243401,-480.0,0.00022191,3]
[385831960,1758058243410,-480.0,0.00022191,3]
[385831962,1758058243420,-480.0,0.00022191,3]
[385831964,1758058243429,-480.0,0.00022191,3]
[385831966,1758058243438,-480.0,0.00022191,3]
[385831968,1758058243447,-480.0,0.00022191,3]
[385831970,1758058243456,-480.0,0.00022191,3]
[385831972,1758058243465,-480.0,0.00022191,3]
[385831974,1758058243475,-480.0,0.00022191,3]
[385831976,1758058243484,-757.44,0.00022191,3]
[385831977,1758058243492,-480.0,0.00022191,3]
[385831978,1758058243501,-480.0,0.00022191,3]
[385831979,1758058243509,-1146.66,0.00022191,3]
[385831980,1758058243518,-480.0,0.00022191,3]
[385831981,1758058243527,-480.0,0.00022191,3]
[385831982,1758058243536,-480.0,0.00022191,3]
[385831983,1758058243545,-859.2,0.00022191,3]
[385831984,1758058243554,-480.0,0.00022191,3]
[385831985,1758058243563,-480.0,0.00022191,3]
[385831986,1758058243572,-480.0,0.00022191,3]
[385831987,1758058243581,-480.0,0.00022191,3]
[385831988,1758058243590,-480.0,0.00022191,3]
[385831989,1758058243599,-480.0,0.00022191,3]
[385831990,1758058243608,-480.0,0.00022191,3]
[385831991,1758058243617,-588.82,0.00022191,3]
[385831992,1758058243626,-480.0,0.00022191,3]
[385831993,1758058243723,-2207.31,0.00022191,3]
[385831994,1758058243733,-480.0,0.00022191,3]
[385831995,1758058243742,-480.0,0.00022191,3]
[385831996,1758058243752,-480.0,0.00022191,3]
[385831998,1758058243761,-480.0,0.00022191,3]
[385832000,1758058243770,-575.92,0.00022191,3]
[385832002,1758058243780,-480.0,0.00022191,3]
[385832004,1758058243790,-480.0,0.00022191,3]
[385832006,1758058243799,-932.15,0.00022191,3]
[385832008,1758058243808,-480.0,0.00022191,3]
[385832010,1758058243817,-480.0,0.00022191,3]
[385832012,1758058243827,-482.33626038,0.00022191,3]
[385832014,1758058243836,-480.0,0.00022191,3]
[385832016,1758058243846,-480.0,0.00022191,3]
[385832018,1758058243854,-480.0,0.00022191,3]
[385832020,1758058243863,-480.0,0.00022191,3]
[385832022,1758058243876,-480.0,0.00022191,3]
[385832024,1758058243886,-480.0,0.00022191,3]
[385832026,1758058243895,-480.0,0.00022191,3]
[385832028,1758058243905,-480.0,0.00022191,3]
[385832030,1758058243914,-480.0,0.00022191,3]
[385832032,1758058243923,-480.0,0.00022191,3]
[385832034,1758058243935,-480.0,0.00022191,3]
[385832036,1758058243945,-480.0,0.00022191,3]
[385832038,1758058243954,-480.0,0.00022191,3]
[385832040,1758058243963,-480.0,0.00022191,3]
[385832042,1758058243973,-480.0,0.00022191,3]
[385832044,1758058243982,-1129.29,0.00022191,3]
[385832046,1758058243992,-480.0,0.00022191,3]
[385832048,1758058244001,-601.18337193,0.00022191,3]
[385832050,1758058244010,-480.0,0.00022191,3]
[385832052,1758058244019,-1005.25,0.00022191,3]
[385832054,1758058244029,-877.89,0.00022191,3]
[385832056,1758058244038,-522.24037431,0.00022191,3]
[385832058,1758058244047,-4272.36,0.00022191,3]
[385832060,1758058244057,-568.82,0.00022191,3]
[385832061,1758058244066,-480.0,0.00022191,3]
[385832063,1758058244076,-480.0,0.00022191,3]
[385832065,1758058244085,-480.0,0.00022191,3]
[385832067,1758058244095,-1790.96,0.00022191,3]
[385832069,1758058244104,-480.0,0.00022191,3]
[385832071,1758058244113,-566.5335913,0.00022191,3]
[385832073,1758058244122,-480.0,0.00022191,3]
[385832075,1758058244132,-553.21,0.00022191,3]
[385832077,1758058244141,-480.0,0.00022191,3]
[385832079,1758058244150,-2191.19,0.00022191,3]
[385832081,1758058244159,-480.0,0.00022191,3]
[385832083,1758058244168,-480.0,0.00022191,3]
[385832085,1758058244178,-480.0,0.00022191,3]
[385832087,1758058244187,-480.0,0.00022191,3]
[385832089,1758058244196,-623.72,0.00022191,3]
[385832091,1758058244205,-480.0,0.00022191,3]
[385832093,1758058244215,-480.0,0.00022191,3]
[385832095,1758058244224,-324.82206593,0.00022191,3]
[385832097,1758058244234,-287.58274652,0.00022191,3]
[385832099,1758058244243,-480.0,0.00022191,3]
[385832101,1758058244252,-480.0,0.00022191,3]
[385832103,1758058244261,-2445.62,0.00022191,3]
[385832105,1758058244271,-480.0,0.00022191,3]
[385832107,1758058244280,-480.0,0.00022191,3]
[385832109,1758058244289,-673.7,0.00022191,3]
[385832111,1758058244298,-480.0,0.00022191,3]
[385832113,1758058244307,-480.0,0.00022191,3]
[385832115,1758058244316,-480.0,0.00022191,3]
[385832117,1758058244326,-480.0,0.00022191,3]
[385832119,1758058244335,-4198.35,0.00022191,3]
[385832121,1758058244344,-480.0,0.00022191,3]
[385832123,1758058244354,-306.25437572,0.00022191,3]
[385832125,1758058244363,-480.0,0.00022191,3]
[385832127,1758058244372,-480.0,0.00022191,3]
[385832129,1758058244381,-480.0,0.00022191,3]
[385832131,1758058244391,-480.0,0.00022191,3]
[385832133,1758058244400,-480.0,0.00022191,3]
[385832135,1758058244409,-480.0,0.00022191,3]
[385832137,1758058244418,-480.0,0.00022191,3]
[385832139,1758058244428,-683.31,0.00022191,3]
[385832141,1758058244438,-480.0,0.00022191,3]
[385832143,1758058244447,-1125.17,0.00022191,3]
[385832145,1758058244456,-716.81,0.00022191,3]
[385832147,1758058244465,-480.0,0.00022191,3]
[385832149,1758058244474,-480.0,0.00022191,3]
[385832151,1758058244483,-1051.6,0.00022191,3]
[385832153,1758058244492,-2266.22,0.00022191,3]
[385832155,1758058244501,-480.0,0.00022191,3]
[385832157,1758058244510,-480.0,0.00022191,3]
[385832159,1758058244519,-480.0,0.00022191,3]
[385832161,1758058244529,-771.29,0.00022191,3]
[385832163,1758058244538,-921.43,0.00022191,3]
[385832165,1758058244547,-480.0,0.00022191,3]
[385832167,1758058244556,-2736.43,0.00022191,3]
[385832169,1758058244565,-480.0,0.00022191,3]
[385832171,1758058244574,-480.0,0.00022191,3]
[385832172,1758058244586,-400.0,0.00022191,3]
[385832174,1758058244595,-480.0,0.00022191,3]
[385832176,1758058244604,-480.0,0.00022191,3]
[385832178,1758058244613,-857.9,0.00022191,3]
[385832180,1758058244622,-1435.48,0.00022191,3]
[385832182,1758058244632,-3193.25,0.00022191,3]
[385832185,1758058244641,-480.0,0.00022191,3]
[385832187,1758058244650,-480.0,0.00022191,3]
[385832189,1758058244659,-480.0,0.00022191,3]
[385832191,1758058244668,-480.0,0.00022191,3]
[385832193,1758058244678,-4124.67,0.00022191,3]
[385832195,1758058244687,-782.93,0.00022191,3]
[385832197,1758058244696,-480.0,0.00022191,3]
[385832199,1758058244705,-480.0,0.00022191,3]
[385832201,1758058244714,-717.8,0.00022191,3]
[385832203,1758058244723,-480.0,0.00022191,3]
[385832205,1758058244732,-480.0,0.00022191,3]
[385832207,1758058244741,-480.0,0.00022191,3]
[385832208,1758058244750,-480.0,0.00022191,3]
[385832210,1758058244759,-480.0,0.00022191,3]
[385832212,1758058244768,-480.0,0.00022191,3]
[385832214,1758058244777,-1063.88,0.00022191,3]
[385832216,1758058244786,-480.0,0.00022191,3]
[385832218,1758058244795,-815.65,0.00022191,3]
[385832220,1758058244804,-480.0,0.00022191,3]
[385832222,1758058244812,-480.0,0.00022191,3]
[385832224,1758058244821,-480.0,0.00022191,3]
[385832226,1758058244830,-480.0,0.00022191,3]
[385832228,1758058244839,-480.0,0.00022191,3]
[385832230,1758058244848,-637.59,0.00022191,3]
[385832232,1758058244857,-480.0,0.00022191,3]
[385832234,1758058244866,-480.0,0.00022191,3]
[385832236,1758058244879,-263.14616992,0.00022191,3]
[385832238,1758058244889,-480.0,0.00022191,3]
[385832240,1758058244898,-866.41,0.00022191,3]
[385832242,1758058244906,-5783.91,0.00022191,3]
[385832244,1758058244916,-1118.25,0.00022191,3]
[385832246,1758058244925,-480.0,0.00022191,3]
[385832248,1758058244935,-480.0,0.00022191,3]
[385832250,1758058244944,-480.0,0.00022191,3]
[385832252,1758058244953,-480.0,0.00022191,3]
[385832254,1758058244962,-472.68863984,0.00022191,3]
[385832256,1758058244971,-480.0,0.00022191,3]
[385832258,1758058244980,-321.68526843,0.00022191,3]
[385832260,1758058244989,-480.0,0.00022191,3]
[385832262,1758058244999,-20720.4,0.00022191,3]
[385832264,1758058245008,-11132.22,0.00022191,3]
[385832266,1758058245017,-1875.19,0.00022191,3]
[385832268,1758058245025,-480.0,0.00022191,3]
[385832270,1758058245034,-480.0,0.00022191,3]
[385832272,1758058245043,-480.0,0.00022191,3]
[385832274,1758058245052,-607.69,0.00022191,3]
[385832276,1758058245062,-480.0,0.00022191,3]
[385832278,1758058245071,-154.05897914,0.00022191,3]
[385832280,1758058245080,-480.0,0.00022191,3]
[385832282,1758058245089,-480.0,0.00022191,3]
[385832284,1758058245098,-480.0,0.00022191,3]
[385832286,1758058245107,-732.37,0.00022191,3]
[385832288,1758058245116,-480.0,0.00022191,3]
[385832290,1758058245125,-480.0,0.00022191,3]
[385832292,1758058245134,-480.0,0.00022191,3]
[385832294,1758058245143,-2293.05,0.00022191,3]
[385832295,1758058245152,-518.52,0.00022191,3]
[385832297,1758058245162,-1438.87,0.00022191,3]
[385832299,1758058245171,-805.62,0.00022191,3]
[385832301,1758058245180,-480.0,0.00022191,3]
[385832303,1758058245189,-480.0,0.00022191,3]
[385832305,1758058245198,-1155.75,0.00022191,3]
[385832307,1758058245207,-480.0,0.00022191,3]
[385832309,1758058245217,-1919.94,0.00022191,3]
[385832311,1758058245226,-979.01,0.00022191,3]
[385832313,1758058245235,-1029.27,0.00022191,3]
[385832315,1758058245244,-480.0,0.00022191,3]
[385832317,1758058245254,-480.0,0.00022191,3]
[385832319,1758058245263,-480.0,0.00022191,3]
[385832321,1758058245272,-480.0,0.00022191,3]
[385832323,1758058245282,-2512.04,0.00022191,3]
[385832325,1758058245291,-480.0,0.00022191,3]
[385832328,1758058245300,-480.0,0.00022191,3]
[385832330,1758058245309,-2337.78,0.00022191,3]
[385832332,1758058245318,-1124.2,0.00022191,3]
[385832334,1758058245328,-480.0,0.00022191,3]
[385832336,1758058245337,-4896.51,0.00022191,3]
[385832338,1758058245346,-1320.86,0.00022191,3]
[385832340,1758058245356,-480.0,0.00022191,3]
[385832342,1758058245364,-480.0,0.00022191,3]
[385832344,1758058245374,-1830.54,0.00022191,2]
[385832346,1758058245383,-480.0,0.00022191,3]
[385832348,1758058245393,-482.14472547,0.00022191,3]
[385832350,1758058245403,-480.0,0.00022191,3]
[385832352,1758058245412,-689.12,0.00022191,3]
[385832354,1758058245422,-480.0,0.00022191,3]
[385832356,1758058245432,-480.0,0.00022191,3]
[385832358,1758058245441,-480.0,0.00022191,3]
[385832360,1758058245450,-260.98,0.0002227,2]
[385832362,1758058245459,-2676.97899537,0.00022282,2]
[385832364,1758058245468,-252.0,0.00022325,2]
[385832366,1758058245477,-252.0,0.00022339,2]
[385832368,1758058245487,-2425.69612467,0.0002244,2]
[385832370,1758058245497,-480.0,0.00022465,3]
[385832372,1758058245506,-480.0,0.00022465,3]
[385832374,1758058245515,-491.3623074,0.00022465,3]
[385832376,1758058245524,-480.0,0.00022465,3]
[385832378,1758058245534,-463.23673427,0.00022465,3]
[385832380,1758058245543,-480.0,0.00022465,3]
[385832382,1758058245553,-480.0,0.00022465,3]
[385832384,1758058245562,-507.81,0.00022465,3]
[385832386,1758058245571,-480.0,0.00022465,3]
[385832388,1758058245581,-480.0,0.00022465,3]
[385832399,1758058245670,-480.0,0.00022465,3]
[385832401,1758058245679,-480.0,0.00022465,3]
[385832403,1758058245688,-480.0,0.00022465,3]
[385832405,1758058245698,-480.0,0.00022465,3]
[385832407,1758058245707,-480.0,0.00022465,3]
[385832409,1758058245717,-178.27367886,0.00022465,3]
[385832411,1758058245727,-480.0,0.00022465,3]
[385832413,1758058245736,-480.0,0.00022465,3]
[385832415,1758058245745,-480.0,0.00022465,3]
[385832417,1758058245755,-480.0,0.00022465,3]
[385832419,1758058245764,-480.0,0.00022465,3]
[385832421,1758058245773,-480.0,0.00022465,3]
[385832423,1758058245782,-480.0,0.00022465,3]
[385832425,1758058245791,-480.0,0.00022465,3]
[385832427,1758058245800,-480.0,0.00022465,3]
[385832429,1758058245809,-480.0,0.00022465,3]
[385832431,1758058245819,-480.0,0.00022465,3]
[385832433,1758058245830,-480.0,0.00022465,3]
[385832435,1758058245839,-480.0,0.00022465,3]
[385832437,1758058245848,-378.42548405,0.00022465,3]
[385832439,1758058245858,-480.0,0.00022465,3]
[385832441,1758058245867,-480.0,0.00022465,3]
[385832443,1758058245880,-480.0,0.00022465,3]
[385832445,1758058245889,-480.0,0.00022465,3]
[385832447,1758058245898,-480.0,0.00022465,3]
[385832449,1758058245907,-518.46,0.00022465,3]
[385832451,1758058245916,-480.0,0.00022465,3]
[385832453,1758058245926,-480.0,0.00022465,3]
[385832455,1758058245935,-480.0,0.00022465,3]
[385832457,1758058245945,-480.0,0.00022465,3]
[385832459,1758058245954,-480.0,0.00022465,3]
[385832461,1758058245964,-1325.44,0.00022465,3]
[385832463,1758058245973,-480.0,0.00022465,3]
[385832465,1758058245982,-480.0,0.00022465,3]
[385832467,1758058245991,-480.0,0.00022465,3]
[385832469,1758058246000,-505.72,0.00022465,3]
[385832471,1758058246010,-480.0,0.00022465,3]
[385832473,1758058246019,-480.0,0.00022465,3]
[385832475,1758058246028,-536.1,0.00022465,3]
[385832477,1758058246037,-480.0,0.00022465,3]
[385832479,1758058246047,-480.0,0.00022465,3]
[385832481,1758058246056,-480.0,0.00022465,3]
[385832482,1758058246065,-480.0,0.00022465,3]
[385832484,1758058246074,-480.0,0.00022465,3]
[385832486,1758058246084,-1918.31,0.00022465,3]
[385832489,1758058246093,-480.0,0.00022465,3]
[385832491,1758058246102,-480.0,0.00022465,3]
[385832492,1758058246111,-480.0,0.00022465,3]
[385832494,1758058246121,-480.0,0.00022465,3]
[385832497,1758058246131,-877.7,0.00022465,3]
[385832499,1758058246140,-480.0,0.00022465,3]
[385832501,1758058246149,-480.0,0.00022465,3]
[385832503,1758058246159,-487.04,0.00022465,3]
[385832505,1758058246168,-1035.57,0.00022465,3]
[385832507,1758058246177,-617.97016189,0.00022465,3]
[385832509,1758058246185,-480.0,0.00022465,3]